[Event "European Rapid Championship 2021"]
[Site "Katowice"]
[Date "2021.12.19"]
[Round "7.8"]
[White "Diermair, Andreas"]
[Black "Mazurkiewicz, Michal"]
[Result "1-0"]
[ECO "A52"]
[WhiteElo "2408"]
[BlackElo "2159"]
[Annotator "NA"]
[PlyCount "35"]
[EventDate "2021.12.18"]
[EventType "swiss"]
[EventCountry "POL"]
[SourceTitle "playchess.com"]
[Source "ChessBase"]
[SourceQuality "1"]
[TimeControl "900+10"]

1. d4 {[%emt 0:00:02]} Nf6 {[%emt 0:01:28]} 2. c4 {[%emt 0:00:05]} e5 {[%emt 0:
00:02]} 3. dxe5 {[%emt 0:00:04]} Ng4 {[%emt 0:00:00]} 4. Nf3 {[%emt 0:00:26]}
Bc5 {[%emt 0:00:01]} 5. e3 {[%emt 0:00:02]} Nc6 {[%emt 0:00:02]} 6. Nc3 {
[%emt 0:00:16]} O-O {[%emt 0:00:04]} 7. Be2 {[%emt 0:00:09]} Re8 {[%emt 0:00:
02]} 8. O-O {[%emt 0:00:49]} a5 {[%emt 0:00:01]} 9. b3 {[%emt 0:00:35]} Ncxe5 {
[%emt 0:00:03]} 10. Nxe5 {[%emt 0:00:53]} Nxe5 {[%emt 0:00:02]} 11. Ne4 {
[%emt 0:00:43]} Bf8 {[%emt 0:00:47]} 12. c5 {[%emt 0:00:49]} Qh4 {[%emt 0:01:
21]} 13. f4 {[%emt 0:01:45]} Nc6 {[%emt 0:01:39]} 14. Bf3 {[%emt 0:00:50]} Qe7
{[%emt 0:01:09]} 15. Bb2 {[%emt 0:01:16]} Kh8 {[%emt 0:02:53]} 16. Re1 {
[%emt 0:01:31]} d6 {[%emt 0:06:43]} 17. cxd6 {[%emt 0:00:32]} cxd6 {[%emt 0:00:
01]} 18. Nc3 {[%emt 0:00:57]} 1-0

[Event "European Rapid Championship 2021"]
[Site "Katowice"]
[Date "2021.12.19"]
[Round "7.9"]
[White "Andersen, Mads"]
[Black "Kozak, Antoni"]
[Result "0-1"]
[ECO "A06"]
[WhiteElo "2574"]
[BlackElo "2356"]
[Annotator "ChessBase"]
[PlyCount "114"]
[EventDate "2021.12.18"]
[EventType "swiss"]
[EventCountry "POL"]
[SourceTitle "playchess.com"]
[Source "ChessBase"]
[SourceQuality "1"]
[TimeControl "900+10"]

1. Nf3 {[%emt 0:00:04]} d5 {[%emt 0:06:45]} 2. g3 {[%emt 0:00:05]} Nf6 {
[%emt 0:00:11]} 3. Bg2 {[%emt 0:00:04]} Bg4 {[%emt 0:00:06]} 4. c4 {[%emt 0:00:
07]} c6 {[%emt 0:00:02]} 5. Ne5 {[%emt 0:00:06]} Bf5 {[%emt 0:00:31]} 6. cxd5 {
[%emt 0:00:09]} cxd5 {[%emt 0:00:04]} 7. Nc3 {[%emt 0:00:16]} Nc6 {[%emt 0:01:
13]} 8. Nxc6 {[%emt 0:01:03]} bxc6 {[%emt 0:00:01]} 9. d3 {[%emt 0:00:10]} e6 {
[%emt 0:00:11]} 10. O-O {[%emt 0:00:10]} Be7 {[%emt 0:00:02]} 11. Qa4 {[%emt 0:
00:18]} Qd7 {[%emt 0:03:10]} 12. e4 {[%emt 0:00:06]} Bg6 {[%emt 0:00:01]} 13.
h3 {[%emt 0:01:40]} O-O {[%emt 0:00:22]} 14. f4 {[%emt 0:00:10]} Rab8 {[%emt 0:
01:10]} 15. a3 {[%emt 0:02:31]} h5 {[%emt 0:00:26]} 16. f5 {[%emt 0:00:55]}
exf5 17. exd5 {[%emt 0:00:10]} cxd5 {[%emt 0:02:11]} 18. Qxd7 {[%emt 0:00:04]}
Nxd7 19. Nxd5 {[%emt 0:00:06]} Bc5+ {[%emt 0:00:03]} 20. Kh2 {[%emt 0:00:25]}
Rfe8 {[%emt 0:00:50]} 21. b4 {[%emt 0:00:31]} Bd4 {[%emt 0:00:12]} 22. Ra2 {
[%emt 0:00:02]} f6 {[%emt 0:00:14]} 23. Rc2 {[%emt 0:00:31]} Ne5 {[%emt 0:00:
18]} 24. Rc7 {[%emt 0:01:15]} Nxd3 {[%emt 0:00:42]} 25. Rd1 {[%emt 0:05:43]}
Nxc1 {[%emt 0:00:02]} 26. Rxd4 {[%emt 0:00:19]} Ne2 {[%emt 0:00:15]} 27. Rd2 {
[%emt 0:00:09]} Kf8 {[%emt 0:00:01]} 28. Bf3 {[%emt 0:00:31]} Bf7 {[%emt 0:00:
23]} 29. Rxf7+ {[%emt 0:00:26]} Kxf7 {[%emt 0:00:01]} 30. Bxh5+ {[%emt 0:00:02]
} g6 {[%emt 0:00:15]} 31. Bxe2 {[%emt 0:00:02]} Rbd8 {[%emt 0:00:08]} 32. Bc4 {
[%emt 0:00:11]} Kg7 {[%emt 0:00:00]} 33. Kg2 {[%emt 0:00:22]} Re4 {[%emt 0:00:
12]} 34. Ba2 {[%emt 0:01:02]} Re3 {[%emt 0:00:01]} 35. a4 {[%emt 0:00:11]} Ra3
{[%emt 0:00:01]} 36. a5 {[%emt 0:00:12]} Rxa2 {[%emt 0:00:08]} 37. Rxa2 {
[%emt 0:00:03]} Rxd5 {[%emt 0:00:01]} 38. Rb2 {[%emt 0:00:22]} a6 {[%emt 0:00:
13]} 39. Kf3 {[%emt 0:00:17]} Rd3+ {[%emt 0:00:16]} 40. Kf2 {[%emt 0:00:02]}
Ra3 {[%emt 0:00:04]} 41. Rc2 {[%emt 0:00:19]} Rb3 {[%emt 0:00:01]} 42. Rc7+ {
[%emt 0:00:09]} Kh6 {[%emt 0:00:02]} 43. Rb7 {[%emt 0:00:19]} g5 {[%emt 0:00:
08]} 44. Rb6 {[%emt 0:00:07]} Kg6 {[%emt 0:00:00]} 45. Ke2 {[%emt 0:00:11]} g4
{[%emt 0:00:28]} 46. h4 {[%emt 0:00:20]} Rxg3 {[%emt 0:00:25]} 47. Rxa6 {
[%emt 0:00:02]} Ra3 {[%emt 0:00:03]} 48. b5 {[%emt 0:00:10]} f4 {[%emt 0:00:01]
} 49. b6 {[%emt 0:00:09]} f3+ {[%emt 0:00:17]} 50. Kf2 {[%emt 0:00:37]} Ra2+ {
[%emt 0:00:01]} 51. Ke3 {[%emt 0:00:06]} f2 {[%emt 0:00:03]} 52. b7 {[%emt 0:
00:07]} f1=Q {[%emt 0:00:03]} 53. b8=Q {[%emt 0:00:04]} Re2+ {[%emt 0:00:58]}
54. Kd4 {[%emt 0:00:06]} Rd2+ {[%emt 0:00:11]} 55. Kc5 {[%emt 0:00:11]} Rc2+ {
[%emt 0:00:06]} 56. Kd5 {[%emt 0:00:25]} Qc4+ {[%emt 0:00:01]} 57. Kd6 {
[%emt 0:00:03]} Qxa6+ {[%emt 0:00:02]} 0-1

[Event "European Rapid Championship 2021"]
[Site "Katowice"]
[Date "2021.12.19"]
[Round "7.9"]
[White "Kjartansson, Gudmundur"]
[Black "Woloch, Oskar"]
[Result "1-0"]
[ECO "A06"]
[WhiteElo "2402"]
[BlackElo "2036"]
[Annotator "NA"]
[PlyCount "47"]
[EventDate "2021.12.18"]
[EventType "swiss"]
[EventCountry "POL"]
[SourceTitle "playchess.com"]
[Source "ChessBase"]
[SourceQuality "1"]
[TimeControl "900+10"]

1. Nf3 {[%emt 0:00:03]} d5 {[%emt 0:00:03]} 2. g3 {[%emt 0:00:12]} Bg4 {
[%emt 0:00:10]} 3. Bg2 {[%emt 0:00:06]} Nd7 {[%emt 0:00:07]} 4. d4 {[%emt 0:00:
18]} c6 {[%emt 0:00:13]} 5. Nbd2 {[%emt 0:00:31]} e6 {[%emt 0:00:26]} 6. O-O {
[%emt 0:00:18]} f5 {[%emt 0:01:14]} 7. c4 {[%emt 0:01:18]} Bd6 {[%emt 0:00:46]}
8. b4 {[%emt 0:03:14]} b5 {[%emt 0:02:47]} 9. cxb5 {[%emt 0:01:01]} cxb5 {
[%emt 0:00:01]} 10. a3 {[%emt 0:01:10]} Bxf3 {[%emt 0:00:14]} 11. exf3 {
[%emt 0:00:46]} Kf7 {[%emt 0:01:34]} 12. Re1 {[%emt 0:00:14]} Qf6 {[%emt 0:00:
46]} 13. Nb3 {[%emt 0:00:17]} Ne7 {[%emt 0:00:56]} 14. Ra2 {[%emt 0:00:02]}
Rhe8 {[%emt 0:00:19]} 15. Nc5 {[%emt 0:00:06]} Bxc5 {[%emt 0:01:41]} 16. dxc5 {
[%emt 0:00:03]} Nc6 {[%emt 0:01:46]} 17. f4 {[%emt 0:00:01]} Red8 {[%emt 0:00:
59]} 18. Rae2 {[%emt 0:00:14]} Nf8 {[%emt 0:00:13]} 19. Bb2 {[%emt 0:00:02]}
Qe7 {[%emt 0:00:20]} 20. g4 {[%emt 0:01:58]} g6 {[%emt 0:00:37]} 21. gxf5 {
[%emt 0:00:24]} gxf5 {[%emt 0:00:01]} 22. Re3 {[%emt 0:00:07]} Ng6 {[%emt 0:00:
40]} 23. Qh5 {[%emt 0:00:33]} h6 {[%emt 0:00:40]} 24. Rxe6 {[%emt 0:00:15]} 1-0

[Event "European Rapid Championship 2021"]
[Site "Katowice"]
[Date "2021.12.19"]
[Round "7.10"]
[White "Laurusas, Tomas"]
[Black "Kosakowski, Jakub"]
[Result "0-1"]
[ECO "E10"]
[WhiteElo "2553"]
[BlackElo "2438"]
[Annotator "ChessBase"]
[PlyCount "54"]
[EventDate "2021.12.18"]
[EventType "swiss"]
[EventCountry "POL"]
[SourceTitle "playchess.com"]
[Source "ChessBase"]
[SourceQuality "1"]
[TimeControl "900+10"]

1. d4 {[%emt 0:00:02]} Nf6 {[%emt 0:00:02]} 2. c4 {[%emt 0:00:02]} e6 {[%emt 0:
00:04]} 3. Nf3 {[%emt 0:00:30]} c5 {[%emt 0:00:08]} 4. d5 {[%emt 0:00:04]} b5 {
[%emt 0:00:03]} 5. dxe6 {[%emt 0:00:02]} fxe6 {[%emt 0:00:02]} 6. cxb5 {
[%emt 0:00:01]} d5 {[%emt 0:00:03]} 7. Nc3 {[%emt 0:00:01]} Nbd7 {[%emt 0:00:
19]} 8. e4 {[%emt 0:00:16]} d4 {[%emt 0:00:35]} 9. e5 {[%emt 0:00:25]} Ng4 {
[%emt 0:00:17]} 10. Ne4 {[%emt 0:03:11]} Bb7 {[%emt 0:02:31]} 11. Neg5 {
[%emt 0:02:27]} Ndxe5 {[%emt 0:03:19]} 12. Nxe5 {[%emt 0:03:39]} Nxe5 {[%emt 0:
00:02]} 13. f4 {[%emt 0:00:01]} Nf7 {[%emt 0:01:41]} 14. h4 {[%emt 0:03:15]}
Qd5 {[%emt 0:03:49]} 15. Qc2 {[%emt 0:02:26]} Bd6 {[%emt 0:02:51]} 16. Bd2 {
[%emt 0:00:36]} Nxg5 {[%emt 0:00:42]} 17. hxg5 {[%emt 0:00:01]} O-O-O {[%emt 0:
00:02]} 18. Bc4 {[%emt 0:00:20]} Qxg2 {[%emt 0:00:22]} 19. Bxe6+ {[%emt 0:00:
03]} Kb8 {[%emt 0:00:01]} 20. O-O-O {[%emt 0:00:01]} h6 {[%emt 0:01:03]} 21.
gxh6 {[%emt 0:00:42]} Rxh6 {[%emt 0:00:10]} 22. Rxh6 {[%emt 0:00:03]} gxh6 {
[%emt 0:00:01]} 23. f5 {[%emt 0:00:01]} Bf3 {[%emt 0:00:27]} 24. Re1 {[%emt 0:
00:06]} Bg3 {[%emt 0:00:03]} 25. Qxc5 {[%emt 0:00:06]} Bxe1 {[%emt 0:00:17]}
26. Bxe1 {[%emt 0:00:49]} d3 {[%emt 0:00:07]} 27. b6 {[%emt 0:00:13]} d2+ {
[%emt 0:00:05]} 0-1

[Event "European Rapid Championship 2021"]
[Site "Katowice"]
[Date "2021.12.19"]
[Round "7.10"]
[White "Kindler, Przemyslaw"]
[Black "Baum, Jonasz"]
[Result "0-1"]
[ECO "B18"]
[WhiteElo "2032"]
[BlackElo "2343"]
[Annotator "NA"]
[PlyCount "130"]
[EventDate "2021.12.18"]
[EventType "swiss"]
[EventCountry "POL"]
[SourceTitle "playchess.com"]
[Source "ChessBase"]
[SourceQuality "1"]
[TimeControl "900+10"]

1. e4 {[%emt 0:00:21]} c6 {[%emt 0:00:18]} 2. d4 {[%emt 0:00:02]} d5 {[%emt 0:
00:01]} 3. Nc3 {[%emt 0:00:01]} dxe4 {[%emt 0:00:05]} 4. Nxe4 {[%emt 0:00:02]}
Bf5 {[%emt 0:00:01]} 5. Ng3 {[%emt 0:00:02]} Bg6 {[%emt 0:00:01]} 6. f4 {
[%emt 0:00:01]} e6 {[%emt 0:00:14]} 7. Nf3 {[%emt 0:00:02]} Nf6 {[%emt 0:00:20]
} 8. Bd3 {[%emt 0:00:06]} Bxd3 {[%emt 0:00:56]} 9. Qxd3 {[%emt 0:00:03]} Nbd7 {
[%emt 0:00:06]} 10. f5 {[%emt 0:00:25]} Bd6 {[%emt 0:00:42]} 11. fxe6 {[%emt 0:
00:07]} fxe6 {[%emt 0:00:10]} 12. Qb3 {[%emt 0:00:32]} Nd5 {[%emt 0:05:13]} 13.
Ne4 {[%emt 0:00:07]} N7f6 {[%emt 0:02:13]} 14. Bg5 {[%emt 0:00:59]} O-O {
[%emt 0:00:52]} 15. Nxf6+ {[%emt 0:01:05]} gxf6 {[%emt 0:00:15]} 16. Bh6 {
[%emt 0:00:01]} Rf7 {[%emt 0:00:24]} 17. O-O {[%emt 0:00:21]} Qd7 {[%emt 0:02:
33]} 18. Rae1 {[%emt 0:00:25]} Bf8 {[%emt 0:00:25]} 19. Bd2 {[%emt 0:00:11]}
Bg7 {[%emt 0:00:28]} 20. Re4 {[%emt 0:00:30]} Re8 {[%emt 0:00:24]} 21. Qd3 {
[%emt 0:00:29]} Ne7 {[%emt 0:00:30]} 22. h4 {[%emt 0:02:25]} Nf5 {[%emt 0:00:
40]} 23. Rfe1 {[%emt 0:00:37]} Nd6 {[%emt 0:00:19]} 24. Rg4 {[%emt 0:00:02]}
Kh8 {[%emt 0:00:19]} 25. h5 {[%emt 0:00:41]} e5 {[%emt 0:00:20]} 26. Rxg7 {
[%emt 0:00:01]} Rxg7 {[%emt 0:00:04]} 27. dxe5 {[%emt 0:00:01]} Nf5 {[%emt 0:
01:29]} 28. exf6 {[%emt 0:00:17]} Rxe1+ {[%emt 0:00:02]} 29. Bxe1 {[%emt 0:00:
02]} Rf7 {[%emt 0:00:12]} 30. Bc3 {[%emt 0:00:25]} Qxd3 {[%emt 0:00:11]} 31.
cxd3 {[%emt 0:00:02]} Kg8 {[%emt 0:00:13]} 32. Ng5 {[%emt 0:00:26]} Rd7 {
[%emt 0:00:06]} 33. f7+ {[%emt 0:00:01]} Kf8 {[%emt 0:00:12]} 34. Bb4+ {
[%emt 0:00:01]} Ne7 {[%emt 0:00:11]} 35. h6 {[%emt 0:00:04]} Rd5 {[%emt 0:00:
16]} 36. Bd2 {[%emt 0:00:32]} Ng6 {[%emt 0:00:13]} 37. d4 {[%emt 0:00:44]} c5 {
[%emt 0:00:10]} 38. g3 {[%emt 0:01:50]} cxd4 {[%emt 0:00:03]} 39. Kg2 {[%emt 0:
00:31]} a5 {[%emt 0:00:10]} 40. Kf3 {[%emt 0:00:11]} Re5 {[%emt 0:00:11]} 41.
a4 {[%emt 0:00:32]} Nh8 {[%emt 0:00:16]} 42. Bf4 {[%emt 0:00:09]} Rd5 {[%emt 0:
00:03]} 43. Ke4 {[%emt 0:00:01]} Rd7 {[%emt 0:00:16]} 44. Be5 {[%emt 0:00:51]}
Re7 {[%emt 0:00:12]} 45. Kxd4 {[%emt 0:00:01]} Nxf7 {[%emt 0:00:05]} 46. Nxh7+
{[%emt 0:00:09]} Ke8 {[%emt 0:00:02]} 47. Bg7 {[%emt 0:00:06]} Nxh6 {[%emt 0:
00:21]} 48. Nf6+ {[%emt 0:00:01]} Kf7 {[%emt 0:00:03]} 49. Bxh6 {[%emt 0:00:02]
} Kxf6 {[%emt 0:00:03]} 50. Bd2 {[%emt 0:00:27]} Rd7+ {[%emt 0:00:05]} 51. Kc3
{[%emt 0:00:09]} Ke5 {[%emt 0:00:11]} 52. Bf4+ {[%emt 0:00:06]} Kd5 {[%emt 0:
00:05]} 53. b4 {[%emt 0:00:10]} axb4+ {[%emt 0:00:13]} 54. Kxb4 {[%emt 0:00:01]
} Kc6 {[%emt 0:00:06]} 55. Kc4 {[%emt 0:01:22]} Rd1 {[%emt 0:00:02]} 56. Be5 {
[%emt 0:00:29]} Re1 {[%emt 0:00:04]} 57. Kd4 {[%emt 0:00:27]} Ra1 {[%emt 0:00:
02]} 58. Ke4 {[%emt 0:00:04]} Rxa4+ {[%emt 0:00:03]} 59. Kf5 {[%emt 0:00:01]}
Kd5 {[%emt 0:00:17]} 60. Bf6 {[%emt 0:00:14]} Ra2 {[%emt 0:00:23]} 61. g4 {
[%emt 0:00:01]} Rf2+ {[%emt 0:00:02]} 62. Kg6 {[%emt 0:00:01]} Ke6 {[%emt 0:00:
13]} 63. g5 {[%emt 0:00:01]} b5 {[%emt 0:00:14]} 64. Bd4 {[%emt 0:00:49]} Rg2 {
[%emt 0:00:16]} 65. Bf6 {[%emt 0:00:04]} b4 {[%emt 0:00:06]} 0-1

[Event "European Rapid Championship 2021"]
[Site "Katowice"]
[Date "2021.12.19"]
[Round "7.11"]
[White "Durarbayli, Vasif"]
[Black "Grabarczyk, Miroslaw"]
[Result "1-0"]
[ECO "C42"]
[WhiteElo "2532"]
[BlackElo "2373"]
[Annotator "ChessBase"]
[PlyCount "79"]
[EventDate "2021.12.18"]
[EventType "swiss"]
[EventCountry "POL"]
[SourceTitle "playchess.com"]
[Source "ChessBase"]
[SourceQuality "1"]
[TimeControl "900+10"]

1. e4 {[%emt 0:00:03]} e5 {[%emt 0:00:02]} 2. Nf3 {[%emt 0:00:01]} Nf6 {
[%emt 0:00:02]} 3. Nxe5 {[%emt 0:00:03]} d6 {[%emt 0:00:02]} 4. Nf3 {[%emt 0:
00:01]} Nxe4 {[%emt 0:00:03]} 5. d4 {[%emt 0:00:01]} Nf6 {[%emt 0:00:18]} 6.
Bd3 {[%emt 0:00:16]} Bg4 {[%emt 0:00:05]} 7. h3 {[%emt 0:00:02]} Bh5 {[%emt 0:
00:02]} 8. Nc3 {[%emt 0:00:10]} Bg6 {[%emt 0:00:23]} 9. Be3 {[%emt 0:01:08]}
Be7 {[%emt 0:00:11]} 10. g4 {[%emt 0:00:02]} Nc6 {[%emt 0:00:52]} 11. g5 {
[%emt 0:00:02]} Nd7 {[%emt 0:00:14]} 12. h4 {[%emt 0:00:02]} Nb4 {[%emt 0:00:
37]} 13. Bxg6 {[%emt 0:02:06]} hxg6 {[%emt 0:00:03]} 14. Qe2 {[%emt 0:00:03]}
c6 {[%emt 0:03:04]} 15. a3 {[%emt 0:01:25]} Na6 {[%emt 0:00:08]} 16. d5 {
[%emt 0:00:08]} c5 {[%emt 0:01:08]} 17. Bf4 {[%emt 0:00:17]} Nb6 {[%emt 0:00:
14]} 18. O-O-O {[%emt 0:00:08]} Qd7 {[%emt 0:00:23]} 19. Rhe1 {[%emt 0:01:01]}
Nc7 {[%emt 0:00:21]} 20. Qxe7+ {[%emt 0:03:33]} Qxe7 {[%emt 0:00:08]} 21. Bxd6
{[%emt 0:00:02]} Qxe1 {[%emt 0:00:58]} 22. Rxe1+ {[%emt 0:00:01]} Kd7 {[%emt 0:
00:03]} 23. Bxc5 {[%emt 0:00:07]} Ncxd5 {[%emt 0:02:48]} 24. Ne5+ {[%emt 0:00:
20]} Ke6 {[%emt 0:02:37]} 25. Nxg6+ {[%emt 0:00:08]} Kf5 {[%emt 0:00:02]} 26.
Nxh8 {[%emt 0:00:02]} Rxh8 {[%emt 0:00:02]} 27. Nxd5 {[%emt 0:00:35]} Nxd5 {
[%emt 0:00:02]} 28. Bd4 {[%emt 0:00:01]} f6 {[%emt 0:00:06]} 29. gxf6 {[%emt 0:
00:03]} gxf6 {[%emt 0:00:01]} 30. Bxa7 {[%emt 0:00:08]} Rxh4 {[%emt 0:00:09]}
31. b3 {[%emt 0:00:39]} b6 {[%emt 0:00:53]} 32. Rd1 {[%emt 0:00:09]} Nc3 {
[%emt 0:00:46]} 33. Rd3 {[%emt 0:00:25]} Rh1+ {[%emt 0:00:07]} 34. Kb2 {
[%emt 0:00:29]} Nd1+ {[%emt 0:00:09]} 35. Ka2 {[%emt 0:00:01]} b5 {[%emt 0:00:
02]} 36. Bd4 {[%emt 0:00:43]} Ke6 {[%emt 0:00:11]} 37. a4 {[%emt 0:00:24]} bxa4
{[%emt 0:00:02]} 38. bxa4 {[%emt 0:00:02]} Rf1 {[%emt 0:00:53]} 39. a5 {
[%emt 0:00:27]} Nxf2 {[%emt 0:00:02]} 40. Rf3 {[%emt 0:00:07]} 1-0

[Event "European Rapid Championship 2021"]
[Site "Katowice"]
[Date "2021.12.19"]
[Round "7.11"]
[White "Hasterok, Mateusz"]
[Black "Spalir, Jernej"]
[Result "1/2-1/2"]
[ECO "D37"]
[WhiteElo "2132"]
[BlackElo "2340"]
[Annotator "NA"]
[PlyCount "66"]
[EventDate "2021.12.18"]
[EventType "swiss"]
[EventCountry "POL"]
[SourceTitle "playchess.com"]
[Source "ChessBase"]
[SourceQuality "1"]
[TimeControl "900+10"]

1. d4 {[%emt 0:00:01]} d5 {[%emt 0:00:02]} 2. c4 {[%emt 0:00:01]} e6 {[%emt 0:
00:02]} 3. Nc3 {[%emt 0:00:02]} Nf6 {[%emt 0:00:03]} 4. Nf3 {[%emt 0:00:01]}
Be7 {[%emt 0:00:02]} 5. Bf4 {[%emt 0:00:02]} O-O {[%emt 0:00:05]} 6. e3 {
[%emt 0:00:02]} b6 {[%emt 0:00:02]} 7. Bd3 {[%emt 0:00:01]} dxc4 {[%emt 0:00:
02]} 8. Bxc4 {[%emt 0:00:02]} Ba6 {[%emt 0:00:01]} 9. Qe2 {[%emt 0:00:01]} Qc8
{[%emt 0:00:02]} 10. Rc1 {[%emt 0:00:37]} Qb7 {[%emt 0:00:23]} 11. O-O {
[%emt 0:00:38]} c5 {[%emt 0:01:14]} 12. dxc5 {[%emt 0:00:02]} bxc5 {[%emt 0:00:
05]} 13. Nb5 {[%emt 0:01:05]} Nbd7 {[%emt 0:00:49]} 14. Nd6 {[%emt 0:01:36]}
Bxc4 {[%emt 0:00:11]} 15. Nxc4 {[%emt 0:00:01]} Qa6 {[%emt 0:00:57]} 16. b3 {
[%emt 0:00:31]} Nd5 {[%emt 0:00:08]} 17. Bg3 {[%emt 0:00:06]} Bf6 {[%emt 0:00:
21]} 18. e4 {[%emt 0:01:05]} N5b6 {[%emt 0:00:11]} 19. Rfd1 {[%emt 0:00:19]}
Rfc8 {[%emt 0:00:31]} 20. h3 {[%emt 0:01:19]} h6 {[%emt 0:01:10]} 21. Rd2 {
[%emt 0:00:41]} Nxc4 {[%emt 0:00:25]} 22. Qxc4 {[%emt 0:01:20]} Qxc4 {[%emt 0:
00:04]} 23. Rxc4 {[%emt 0:00:01]} Nb6 {[%emt 0:00:02]} 24. Rc1 {[%emt 0:00:06]}
c4 {[%emt 0:00:01]} 25. bxc4 {[%emt 0:00:10]} Rxc4 {[%emt 0:00:01]} 26. Rxc4 {
[%emt 0:00:20]} Nxc4 {[%emt 0:00:02]} 27. Rd7 {[%emt 0:00:06]} a5 {[%emt 0:00:
54]} 28. Rc7 {[%emt 0:00:24]} Nb6 {[%emt 0:00:42]} 29. Be5 {[%emt 0:01:10]} Bd8
{[%emt 0:00:26]} 30. Rb7 {[%emt 0:00:13]} Nc4 {[%emt 0:00:10]} 31. Bf4 {
[%emt 0:01:02]} Rc8 {[%emt 0:01:41]} 32. Ne5 {[%emt 0:01:23]} Bc7 {[%emt 0:00:
04]} 33. Nc6 {[%emt 0:00:51]} Bd8 {[%emt 0:00:11]} 1/2-1/2

[Event "European Rapid Championship 2021"]
[Site "Katowice"]
[Date "2021.12.19"]
[Round "7.12"]
[White "Lubczynski, Rafal"]
[Black "Smieszek, Wojciech"]
[Result "1-0"]
[ECO "A05"]
[WhiteElo "2289"]
[BlackElo "2033"]
[Annotator "NA"]
[PlyCount "73"]
[EventDate "2021.12.18"]
[EventType "swiss"]
[EventCountry "POL"]
[SourceTitle "playchess.com"]
[Source "ChessBase"]
[SourceQuality "1"]
[TimeControl "900+10"]

1. Nf3 {[%emt 0:01:37]} Nf6 {[%emt 0:00:57]} 2. g3 {[%emt 0:00:03]} c5 {
[%emt 0:00:02]} 3. c4 {[%emt 0:00:02]} Nc6 {[%emt 0:00:02]} 4. d4 {[%emt 0:00:
03]} cxd4 {[%emt 0:00:02]} 5. Nxd4 {[%emt 0:00:01]} g6 {[%emt 0:00:01]} 6. Bg2
{[%emt 0:00:02]} Bg7 {[%emt 0:00:02]} 7. O-O {[%emt 0:00:06]} O-O {[%emt 0:00:
02]} 8. Nc2 {[%emt 0:00:07]} d6 {[%emt 0:00:06]} 9. Nc3 {[%emt 0:00:03]} Be6 {
[%emt 0:00:04]} 10. Ne3 {[%emt 0:00:55]} Qd7 {[%emt 0:00:14]} 11. Bd2 {[%emt 0:
02:30]} Ne5 {[%emt 0:01:02]} 12. b3 {[%emt 0:00:11]} Bh3 {[%emt 0:00:14]} 13.
Rc1 {[%emt 0:00:16]} Bxg2 {[%emt 0:00:25]} 14. Kxg2 {[%emt 0:00:03]} a6 {
[%emt 0:00:44]} 15. f3 {[%emt 0:01:07]} b5 {[%emt 0:03:19]} 16. cxb5 {[%emt 0:
02:44]} axb5 {[%emt 0:00:02]} 17. Ncd5 {[%emt 0:00:01]} Nxd5 {[%emt 0:00:24]}
18. Nxd5 {[%emt 0:00:01]} Qb7 {[%emt 0:00:52]} 19. Nb4 {[%emt 0:00:30]} Rfc8 {
[%emt 0:00:47]} 20. Be3 {[%emt 0:02:41]} Ng4 {[%emt 0:02:34]} 21. Bg1 {[%emt 0:
00:30]} Bh6 {[%emt 0:00:04]} 22. Rxc8+ {[%emt 0:00:12]} Rxc8 {[%emt 0:00:01]}
23. Qd5 {[%emt 0:00:45]} Qd7 {[%emt 0:02:33]} 24. fxg4 {[%emt 0:00:05]} Qxg4 {
[%emt 0:00:02]} 25. Nc6 {[%emt 0:03:24]} e6 {[%emt 0:00:32]} 26. Ne7+ {[%emt 0:
01:02]} Kf8 {[%emt 0:00:13]} 27. Qxd6 {[%emt 0:00:21]} Qxe2+ {[%emt 0:01:17]}
28. Rf2 {[%emt 0:00:15]} Qe4+ {[%emt 0:00:15]} 29. Kh3 {[%emt 0:00:01]} Re8 {
[%emt 0:01:19]} 30. Nf5+ {[%emt 0:00:03]} Kg8 {[%emt 0:00:11]} 31. Nxh6+ {
[%emt 0:00:01]} Kg7 {[%emt 0:00:01]} 32. Rxf7+ {[%emt 0:00:21]} Kxh6 {[%emt 0:
00:03]} 33. Qf4+ {[%emt 0:00:12]} Qxf4 {[%emt 0:00:03]} 34. Rxf4 {[%emt 0:00:
15]} Ra8 {[%emt 0:00:04]} 35. Rf2 {[%emt 0:00:11]} Kg5 {[%emt 0:00:01]} 36. Re2
{[%emt 0:00:04]} Kf5 {[%emt 0:00:02]} 37. Bd4 {[%emt 0:00:01]} 1-0

[Event "European Rapid Championship 2021"]
[Site "Katowice"]
[Date "2021.12.19"]
[Round "7.12"]
[White "Sharankov, Grigory"]
[Black "Stefansson, Hannes"]
[Result "0-1"]
[ECO "A40"]
[WhiteElo "2220"]
[BlackElo "2519"]
[Annotator "ChessBase"]
[PlyCount "50"]
[EventDate "2021.12.18"]
[EventType "swiss"]
[EventCountry "POL"]
[SourceTitle "playchess.com"]
[Source "ChessBase"]
[SourceQuality "1"]
[TimeControl "900+10"]

1. d4 {[%emt 0:00:02]} Nf6 {[%emt 0:00:01]} 2. c4 {[%emt 0:00:03]} e6 {[%emt 0:
00:01]} 3. g3 {[%emt 0:00:08]} c5 {[%emt 0:00:06]} 4. Nf3 {[%emt 0:00:09]} cxd4
{[%emt 0:00:11]} 5. Nxd4 {[%emt 0:00:02]} Qc7 {[%emt 0:00:07]} 6. Nc3 {[%emt 0:
00:21]} a6 {[%emt 0:00:03]} 7. Bg2 {[%emt 0:00:50]} Qxc4 {[%emt 0:00:29]} 8.
Bf4 {[%emt 0:00:44]} Nc6 {[%emt 0:00:45]} 9. Nxc6 {[%emt 0:00:39]} bxc6 {
[%emt 0:00:23]} 10. Bd6 {[%emt 0:00:12]} Bxd6 {[%emt 0:00:56]} 11. Qxd6 {
[%emt 0:00:02]} a5 {[%emt 0:00:06]} 12. O-O {[%emt 0:01:25]} Qb4 {[%emt 0:00:
10]} 13. Qd2 {[%emt 0:02:29]} O-O {[%emt 0:00:25]} 14. a3 {[%emt 0:00:37]} Qb3
{[%emt 0:00:25]} 15. Rac1 {[%emt 0:00:50]} d5 {[%emt 0:00:10]} 16. Nd1 {
[%emt 0:00:36]} Bb7 {[%emt 0:00:32]} 17. Rc3 {[%emt 0:01:21]} Qb6 {[%emt 0:00:
08]} 18. Qc2 {[%emt 0:01:20]} Rfc8 {[%emt 0:00:16]} 19. b3 {[%emt 0:01:49]} d4
{[%emt 0:01:35]} 20. Rc5 {[%emt 0:00:44]} Nd7 {[%emt 0:00:41]} 21. Rh5 {
[%emt 0:00:16]} g6 {[%emt 0:00:02]} 22. Rh4 {[%emt 0:00:01]} c5 {[%emt 0:00:10]
} 23. Bxb7 {[%emt 0:02:05]} Qxb7 {[%emt 0:00:02]} 24. e3 {[%emt 0:00:43]} Ne5 {
[%emt 0:00:14]} 25. Qe4 {[%emt 0:00:47]} Qxe4 {[%emt 0:00:03]} 0-1